bitfinex-derivatives/quotes_SOLF0:USTF0_20241027
["timestamp","ask_amount","ask_price","bid_price","bid_amount"]
[1730022425784,7.06801519,174.11,174.04,1.2474]
[1730022425977,7.06801519,174.11,174.05,7.06801519]
[1730022425978,4.22,174.1,174.05,7.06801519]
[1730022426181,7.06801519,174.09,174.05,7.06801519]
[1730022427178,9.94341519,174.09,174.06,2.8758]
[1730022427383,7.06801519,174.08,174.02,1.1672]
[1730022427584,7.06801519,174.08,174.03,7.06801519]
[1730022427890,7.06801519,174.08,174.03,9.94421519]
[1730022427891,2.8758,174.07,174.03,9.94421519]
[1730022428080,4.22,174.06,174.03,9.94421519]
[1730022428486,4.22,174.06,174.03,7.06801519]
[1730022428691,4.22,174.06,174.04,9.94401519]
[1730022431084,4.22,174.06,174.04,7.06801519]
[1730022431388,4.22,174.06,174.02,7.06801519]
[1730022431985,4.22,174.06,174.03,2.8762]
[1730022433190,7.0959,174.06,174.02,9.94441519]
[1730022433600,7.0959,174.06,174.02,2.8764]
[1730022435092,7.0959,174.06,174.02,9.94441519]
[1730022436094,7.0959,174.06,174.02,7.06801519]
[1730022436297,7.0959,174.06,174.03,2.8763]
[1730022436693,7.0959,174.06,174.02,7.06801519]
[1730022436694,2.8764,174.03,173.98,2.8771]
[1730022436892,4.22,174.02,173.98,2.8771]
[1730022437096,4.22,174.01,173.98,7.06801519]
[1730022437398,4.22,174.0,173.98,7.06801519]
[1730022437594,4.22,174.0,173.99,2.877]
[1730022438286,4.22,174.0,173.98,2.8771]
[1730022446899,4.22,174.0,173.98,9.94511519]
[1730022447801,4.22,174.0,173.98,2.8771]
[1730022457507,4.22,174.0,173.97,2.8773]
[1730022460802,4.22,174.0,173.97,7.06801519]
[1730022461002,4.22,174.0,173.99,2.877]
[1730022477522,9.94451519,174.02,173.99,2.877]
[1730022477721,4.22,174.01,173.99,2.877]
[1730022479422,11.28801519,174.01,173.99,2.877]
[1730022480927,11.28801519,174.01,173.98,2.877]
[1730022484033,11.28801519,174.01,173.96,7.06801519]
[1730022484034,14.16471519,174.01,173.96,7.06801519]
[1730022485226,14.16471519,174.01,173.98,2.8771]
[1730022485624,11.28801519,174.01,173.98,2.8771]
[1730022487923,11.28801519,174.01,173.96,7.06801519]
[1730022488127,11.28801519,174.01,173.98,2.8771]
[1730022491530,4.22,174.0,173.98,2.8771]
[1730022495135,7.06801519,174.03,174.0,2.8767]
[1730022495337,4.22,174.02,174.0,2.8767]
[1730022496340,11.28801519,174.02,174.0,2.8767]
[1730022498130,14.16451519,174.02,173.98,2.8771]
[1730022498443,11.28801519,174.02,173.96,7.06801519]
[1730022498744,7.06801519,174.01,173.98,2.877]
[1730022498943,7.06801519,173.99,173.95,1.1988]
[1730022499241,7.06801519,173.99,173.94,2.4311]
[1730022499242,7.06801519,173.97,173.94,2.8778]
[1730022499432,7.06801519,173.95,173.94,2.8778]
[1730022500234,4.22,173.96,173.94,2.8778]
[1730022500235,11.28801519,173.96,173.94,2.8778]
[1730022501644,4.22,173.96,173.95,2.8776]
[1730022501837,4.22,173.96,173.92,7.06801519]
[1730022502646,7.06801519,173.93,173.74,22.66483202]
[1730022502839,7.06801519,173.85,173.8,7.06801519]
[1730022503040,4.22,173.84,173.8,7.06801519]
[1730022503344,4.22,173.83,173.81,7.06801519]
[1730022503935,2.8786,173.9,173.83,2.8796]
[1730022504136,7.06801519,173.89,173.84,7.06801519]
[1730022504348,4.22,173.88,173.84,7.06801519]
[1730022504553,4.22,173.88,173.85,2.8791]
[1730022504849,4.22,173.87,173.76,2.4497]
[1730022505047,4.22,173.87,173.86,7.06801519]
[1730022505245,7.06801519,173.92,173.86,7.06801519]
[1730022505246,60.0737,173.95,173.86,9.94711519]
[1730022505436,55.92,173.95,173.9,7.06801519]
[1730022505641,4.22,173.94,173.9,7.06801519]
[1730022505840,7.06801519,173.93,173.88,7.06801519]
[1730022506747,7.06801519,173.93,173.89,2.8786]
[1730022507138,7.06801519,173.92,173.87,2.8789]
[1730022507337,7.06801519,173.92,173.87,9.94691519]
[1730022509146,11.28801519,173.94,173.88,7.06801519]
[1730022509451,11.28801519,173.94,173.9,2.8785]
[1730022509848,7.06801519,173.92,173.88,2.8788]
[1730022510059,7.06801519,173.92,173.87,7.06801519]
[1730022511351,4.22,173.91,173.9,7.06801519]
[1730022511752,4.22,173.91,173.9,9.94651519]
[1730022512253,4.22,173.91,173.9,2.8785]
[1730022512555,4.22,173.91,173.9,9.94651519]
[1730022512758,62.98801519,173.95,173.91,2.8782]
[1730022512959,4.22,173.94,173.91,2.8782]
[1730022514752,11.28801519,173.94,173.78,4.22]
[1730022514953,7.06801519,173.92,173.79,1.058051]
[1730022515148,7.06801519,173.92,173.86,7.06801519]
[1730022515951,7.06801519,173.91,173.87,2.879]
[1730022516154,11.28801519,173.9,173.84,7.06801519]
[1730022516353,4.22,173.89,173.84,7.06801519]
[1730022517155,2.3942,173.94,173.87,7.06801519]
[1730022517462,62.98801519,173.95,173.9,7.06801519]
[1730022517650,55.92,173.95,173.92,7.06801519]
[1730022517851,4.22,173.94,173.93,7.06801519]
[1730022519357,4.22,173.94,173.93,9.94581519]
[1730022520661,55.92,173.95,173.93,7.06801519]
[1730022520966,55.92,173.95,173.94,9.94581519]
[1730022521157,60.14,173.95,173.94,9.94581519]
[1730022528460,60.14,173.95,173.94,7.06801519]
[1730022528765,60.14,173.95,173.94,9.94581519]
[1730022529266,60.14,173.95,173.94,2.8778]
[1730022533271,2.8781,173.93,173.89,2.8786]
[1730022533566,7.06801519,173.91,173.85,7.06801519]
[1730022533766,4.22,173.9,173.85,7.06801519]
[1730022534567,4.22,173.9,173.86,2.8791]
[1730022534877,4.22,173.9,173.86,7.06801519]
[1730022536272,4.22,173.9,173.88,2.8788]
[1730022540377,4.22,173.9,173.87,2.8789]
[1730022540574,7.06801519,173.89,173.82,3.6353]
[1730022540876,11.28801519,173.9,173.84,7.06801519]
[1730022543377,11.28801519,173.9,173.87,2.8789]
[1730022545472,4.22,173.9,173.84,7.06801519]
[1730022545676,11.28801519,173.9,173.84,7.06801519]
[1730022546279,7.06801519,173.89,173.86,2.8791]
[1730022547281,7.06801519,173.89,173.82,3.6353]
[1730022547576,7.06801519,173.89,173.84,7.06801519]
[1730022547776,7.06801519,173.89,173.86,2.8791]
[1730022548479,7.06801519,173.93,173.9,2.8783]
[1730022548679,4.22,173.92,173.9,2.8783]
[1730022548878,4.22,173.92,173.88,7.06801519]
[1730022549780,4.22,173.92,173.89,2.8785]
[1730022549982,4.22,173.91,173.89,2.8785]
[1730022550979,4.22,173.91,173.82,3.6353]
[1730022551180,4.22,173.91,173.86,7.06801519]
[1730022551181,11.28801519,173.91,173.86,7.06801519]
[1730022553784,11.28801519,173.91,173.88,2.8787]
[1730022555478,11.28801519,173.91,173.86,7.06801519]
[1730022555685,14.16631519,173.91,173.82,3.6353]
[1730022555986,4.22,173.91,173.85,7.06801519]
[1730022556183,11.28801519,173.91,173.86,7.06801519]
[1730022556887,11.28801519,173.91,173.88,2.8787]
[1730022558193,7.06801519,173.89,173.86,2.8791]
[1730022561693,4.22,173.88,173.86,2.8791]
[1730022566201,4.22,173.88,173.83,7.06801519]
[1730022568104,4.22,173.88,173.86,2.879]
[1730022568698,4.22,173.88,173.84,7.06801519]
[1730022568899,4.22,173.87,173.84,7.06801519]
[1730022569104,4.22,173.87,173.86,7.06801519]
[1730022569907,4.22,173.87,173.86,9.94711519]
[1730022577714,4.22,173.87,173.86,2.8791]
[1730022580508,4.22,173.87,173.72,2.8814]
[1730022580509,2.8805,173.78,173.72,2.8814]
[1730022580712,11.28801519,173.77,173.71,7.06801519]
[1730022580913,4.22,173.76,173.71,7.06801519]
[1730022581415,4.22,173.76,173.7,7.06801519]
[1730022581920,4.22,173.75,173.72,7.06801519]
[1730022582318,4.22,173.75,173.7,7.06801519]
[1730022582616,55.94,173.82,173.71,7.06801519]
[1730022582822,4.22,173.81,173.73,7.06801519]
[1730022583208,7.06801519,173.79,173.73,7.06801519]
[1730022583815,7.06801519,173.79,173.74,7.06801519]
[1730022584211,4.22,173.78,173.74,7.06801519]
[1730022585016,4.22,173.78,173.74,9.94911519]
[1730022585621,7.06801519,173.8,173.74,2.8811]
[1730022585622,4.22,173.77,173.74,2.8811]
[1730022585820,4.22,173.77,173.74,9.94911519]
[1730022586113,4.22,173.77,173.74,7.06801519]
[1730022588016,7.06801519,173.78,173.74,7.06801519]
[1730022588216,4.22,173.76,173.74,7.06801519]
[1730022590526,4.22,173.75,173.73,2.8813]
[1730022590719,4.22,173.75,173.73,9.94931519]
[1730022591119,4.22,173.75,173.73,2.8813]
[1730022591326,4.22,173.75,173.73,9.94931519]
[1730022594328,4.22,173.75,173.74,2.8811]
[1730022596941,58.8198,173.82,173.76,2.8807]
[1730022597127,11.28801519,173.81,173.76,7.06801519]
[1730022597826,11.28801519,173.81,173.7,1.2221]
[1730022598023,11.28801519,173.81,173.75,7.06801519]
[1730022598233,7.06801519,173.8,173.77,2.8805]
[1730022600636,7.06801519,173.8,173.78,2.8804]
[1730022600834,55.94,173.82,173.76,7.06801519]
[1730022601033,4.28,173.81,173.76,7.06801519]
[1730022601740,11.34801519,173.81,173.76,7.06801519]
[1730022602039,7.06801519,173.8,173.7,1.2221]
[1730022602232,7.06801519,173.8,173.74,7.06801519]
[1730022602532,9.94831519,173.8,173.76,2.8807]
[1730022602935,7.06801519,173.8,173.76,2.8807]
[1730022603237,9.94811519,173.8,173.76,2.8807]
[1730022604036,55.94,173.82,173.75,7.06801519]
[1730022604240,4.28,173.79,173.75,7.06801519]
[1730022604434,4.28,173.78,173.75,7.06801519]
[1730022605132,55.94,173.82,173.77,7.06801519]
[1730022605332,4.28,173.81,173.77,7.06801519]
[1730022605537,4.28,173.8,173.77,7.06801519]
[1730022605742,11.34801519,173.8,173.7,1.2221]
[1730022606040,11.34801519,173.8,173.74,7.06801519]
[1730022606440,11.34801519,173.8,173.76,2.8806]
[1730022606636,11.34801519,173.8,173.74,7.06801519]
[1730022607339,4.28,173.79,173.74,7.06801519]
[1730022608137,2.8801,173.81,173.7,1.2221]
[1730022608345,4.28,173.8,173.75,7.06801519]
[1730022608744,58.8198,173.82,173.79,2.8802]
[1730022608941,4.28,173.81,173.79,2.8802]
[1730022610247,4.28,173.8,173.79,2.8802]
[1730022612846,4.28,173.8,173.78,2.8805]
[1730022613045,4.28,173.8,173.77,7.06801519]
[1730022613851,55.94,173.82,173.78,7.06801519]
[1730022614050,4.28,173.81,173.79,7.06801519]
[1730022614250,7.06801519,173.85,173.79,7.06801519]
[1730022614448,4.28,173.84,173.82,2.8797]
[1730022614753,7.06801519,173.85,173.79,7.06801519]
[1730022614952,4.28,173.84,173.79,7.06801519]
[1730022615357,55.98,173.89,173.79,7.06801519]
[1730022615557,4.28,173.88,173.81,7.06801519]
[1730022615858,7.06801519,173.87,173.81,7.06801519]
[1730022616057,7.06801519,173.87,173.85,2.8792]
[1730022616245,58.8588,173.89,173.72,4.28]
[1730022616246,4.28,173.86,173.84,7.06801519]
[1730022616659,4.28,173.86,173.85,2.8793]
[1730022619152,7.06801519,173.88,173.85,2.8793]
[1730022619353,4.28,173.86,173.85,2.8793]
[1730022620163,63.04801519,173.89,173.84,7.06801519]
[1730022620367,5.33970092,173.94,173.76,4.28]
[1730022620368,2.4709,173.94,173.86,7.06801519]
[1730022620568,11.34801519,173.93,173.87,7.06801519]
[1730022620866,4.28,173.96,173.92,7.06801519]
[1730022621464,4.28,173.96,173.93,2.8778]
[1730022622058,4.28,173.96,173.94,2.8778]
[1730022623169,4.28,173.96,173.93,2.8778]
[1730022624666,4.28,173.96,173.92,7.06801519]
[1730022624866,4.28,173.96,173.93,2.8779]
[1730022625764,4.28,173.96,173.94,2.8778]
[1730022630769,55.96,173.97,173.96,2.8775]
[1730022631069,60.28,173.97,173.96,2.8775]
[1730022632274,4.32,173.97,173.96,2.8774]
[1730022634873,2.8767,174.01,173.96,2.8774]
[1730022635071,4.32,174.0,173.95,7.06801519]
[1730022635269,4.32,174.0,173.85,3.6397]
[1730022635270,4.32,173.99,173.96,7.06801519]
[1730022635670,4.32,173.99,173.89,4.32]
[1730022635871,11.38801519,173.99,173.94,7.06801519]
[1730022636780,11.38801519,173.99,173.96,2.8773]
[1730022636974,4.32,173.99,173.95,7.06801519]
[1730022637474,4.32,173.99,173.97,2.8773]
[1730022637673,11.38801519,173.99,173.97,2.8773]
[1730022641679,4.32,173.99,173.95,7.06801519]
[1730022641885,4.32,173.99,173.98,2.8771]
[1730022642978,4.32,173.99,173.89,4.32]
[1730022642979,7.06801519,174.02,173.97,7.06801519]
[1730022643175,7.06801519,174.02,174.0,2.8768]
[1730022643378,4.32,174.01,174.0,2.8768]
[1730022645581,7.06801519,174.03,174.02,2.8765]
[1730022645782,11.38801519,174.03,173.97,7.06801519]
[1730022645976,4.32,174.03,173.97,7.06801519]
[1730022648176,4.32,174.03,173.99,2.8769]
[1730022650279,7.1963,174.03,173.99,2.8769]
[1730022652286,4.32,174.02,173.99,2.8769]
[1730022654082,7.06801519,174.0,173.85,109.81621469]
[1730022654289,9.94561519,173.96,173.92,2.8781]
[1730022654484,4.32,173.95,173.92,2.8781]
[1730022654983,7.06801519,173.94,173.85,109.81621469]
[1730022655181,2.8786,173.9,173.86,9.94711519]
[1730022655388,7.06801519,173.91,173.86,7.06801519]
[1730022655389,11.38801519,173.91,173.86,7.06801519]
[1730022655985,11.38801519,173.91,173.88,2.8788]
[1730022656992,4.32,173.91,173.89,2.8786]
[1730022660589,4.32,173.91,173.87,7.06801519]
[1730022660790,4.32,173.91,173.9,2.8785]
[1730022663199,11.38801519,173.91,173.65,8.01317393]
[1730022663497,7.06801519,173.84,173.73,1.1606]
[1730022663692,7.06801519,173.85,173.78,7.06801519]
[1730022663890,4.28,173.84,173.78,7.06801519]
[1730022664889,7.06801519,173.85,173.78,7.06801519]
[1730022665087,3.7195,173.9,173.84,2.8793]
[1730022665088,4.28,173.87,173.84,2.8793]
[1730022665397,4.28,173.87,173.85,7.06801519]
[1730022665597,4.28,173.87,173.83,9.94751519]
[1730022665791,4.28,173.87,173.85,7.06801519]
[1730022666193,4.28,173.88,173.86,7.06801519]
[1730022666389,4.28,173.92,173.86,7.06801519]
[1730022666591,4.28,173.92,173.9,7.06801519]
[1730022666995,4.28,173.92,173.9,9.94641519]
[1730022668302,4.28,173.92,173.9,7.06801519]
[1730022668600,4.28,173.92,173.91,2.8783]
[1730022670001,4.28,173.92,173.75,11.5247]
[1730022670002,11.34801519,173.92,173.64,240.59763372]
[1730022670201,7.06801519,173.85,173.78,7.06801519]
[1730022670402,4.28,173.84,173.78,7.06801519]
[1730022670903,4.28,173.84,173.8,7.06801519]
[1730022671202,4.28,173.84,173.82,2.8797]
[1730022671701,9.94701519,173.87,173.82,2.8797]
[1730022672001,4.28,173.86,173.82,2.8797]
[1730022673505,7.1593,173.86,173.81,2.8799]
[1730022673806,4.28,173.86,173.81,2.8799]
[1730022674405,7.1591,173.86,173.81,2.8799]
[1730022675510,2.8793,173.85,173.81,2.8799]
[1730022677903,2.8793,173.85,173.78,2.8803]
[1730022678109,2.8795,173.84,173.76,12.2295022]
[1730022678315,15.3392022,173.86,173.76,12.2295022]
[1730022678515,15.3392022,173.86,173.78,2.8804]
[1730022679103,2.8798,173.83,173.79,2.8802]
[1730022679317,4.28,173.82,173.79,2.8802]
[1730022681018,4.28,173.82,173.76,12.2295022]
[1730022682320,4.28,173.82,173.8,2.8801]
[1730022686115,4.28,173.82,173.8,2.88]
[1730022687407,11.0592022,173.88,173.76,12.2295022]
[1730022687611,4.3,173.87,173.79,11.0592022]
[1730022688709,2.8793,173.86,173.79,11.0592022]
[1730022689415,2.8793,173.86,173.81,2.8799]
[1730022689817,4.3,173.85,173.81,2.8799]
[1730022690823,4.3,173.85,173.82,2.8798]
[1730022691417,4.3,173.85,173.79,11.0592022]
[1730022691616,4.3,173.85,173.83,2.8796]
[1730022698124,4.3,173.85,173.81,7.07805942]
[1730022698324,7.1794,173.85,173.79,7.07805942]
[1730022698827,7.07805942,173.84,173.79,7.07805942]
[1730022699328,7.07805942,173.84,173.81,2.8798]
[1730022699830,14.25745942,173.85,173.81,7.07805942]
[1730022700121,14.25745942,173.85,173.82,2.8798]
[1730022700928,4.3,173.85,173.83,2.8795]
[1730022701330,4.3,173.85,173.81,7.07805942]
[1730022701530,4.3,173.85,173.84,2.8795]
[1730022701733,4.3,173.85,173.81,7.07805942]
[1730022701734,4.42,173.85,173.8,7.07805942]
[1730022702230,4.42,173.85,173.82,2.8797]
[1730022704234,7.2993,173.85,173.82,2.8797]
[1730022705240,4.42,173.85,173.82,2.8797]
[1730022705528,4.42,173.85,173.84,2.8795]
[1730022706634,4.42,173.85,173.83,2.8796]
[1730022710033,7.2993,173.85,173.78,2.8803]
[1730022710353,7.2993,173.85,173.8,7.07805942]
[1730022710730,7.2993,173.85,173.82,2.8798]
[1730022711437,7.2993,173.85,173.8,7.07805942]
[1730022711633,7.2993,173.85,173.81,2.8799]
[1730022711935,4.42,173.85,173.81,2.8799]
[1730022713430,7.2994,173.85,173.81,2.8799]
[1730022723842,7.2994,173.85,173.8,7.07805942]
[1730022724040,7.2994,173.85,173.82,2.8798]
[1730022728238,7.07805942,173.84,173.76,1.1703]
[1730022728439,7.07805942,173.81,173.76,1.1703]
[1730022728641,4.3,173.8,173.76,1.1703]
[1730022729347,4.3,173.8,173.78,2.8803]
[1730022735351,4.3,173.8,173.79,2.8803]
[1730022746453,13.83741375,173.89,173.79,11.37805942]
[1730022746649,7.07805942,173.94,173.87,7.07805942]
[1730022746850,4.3,173.93,173.87,7.07805942]
[1730022747153,4.3,173.93,173.84,7.07805942]
[1730022747154,7.07805942,173.91,173.84,7.07805942]
[1730022748256,7.07805942,173.91,173.87,2.8789]
[1730022749962,4.3,173.93,173.9,2.8784]
[1730022750152,55.96,173.97,173.9,7.07805942]
[1730022750357,4.3,173.96,173.91,7.07805942]
[1730022750560,55.96,173.97,173.91,7.07805942]
[1730022750751,55.96,173.97,173.81,6.6715]
[1730022750752,4.3,173.96,173.93,7.07805942]
[1730022751357,4.3,173.96,173.94,2.8778]
[1730022752357,55.96,173.97,173.94,2.8778]
[1730022752864,4.34,173.96,173.94,2.8778]
[1730022753456,4.34,173.96,173.93,7.07805942]
[1730022753660,4.34,173.96,173.94,2.8778]
[1730022753961,7.07805942,174.19,174.0,174.0]
[1730022754160,2.89639087,174.19,174.01,5.12]
[1730022754366,7.07805942,174.18,174.12,7.07805942]
[1730022755061,5.12,174.17,174.13,2.8747]
[1730022756258,1.0224,174.25,174.16,2.8742]
[1730022756259,11.04226339,174.23,174.16,2.8742]
[1730022756460,5.12,174.22,174.16,2.8742]
[1730022757056,5.12,174.22,174.15,2.8743]
[1730022759151,5.12,174.22,174.12,11.04226339]
[1730022759356,5.12,174.22,174.15,2.8743]
[1730022760055,5.12,174.22,174.12,11.04226339]
[1730022760056,11.04226339,174.21,174.12,11.04226339]
[1730022760257,11.04226339,174.21,174.13,2.8747]
[1730022761355,11.04226339,174.21,174.09,16.16226339]
[1730022761655,5.12,174.2,174.12,11.04226339]
[1730022761856,5.12,174.2,174.15,2.8743]
[1730022762256,5.12,174.2,174.12,11.04226339]
[1730022762864,11.04226339,174.23,174.12,11.04226339]
[1730022763069,5.12,174.22,174.12,11.04226339]
[1730022763367,5.12,174.22,174.16,2.8742]
[1730022768673,7.9932,174.22,174.16,2.8742]
[1730022769968,2.8732,174.22,174.16,2.8742]
[1730022770167,5.1,174.21,174.16,2.8742]
[1730022772270,16.14226339,174.21,174.12,11.04226339]
[1730022772473,16.14226339,174.21,174.09,11.04226339]
[1730022772673,2.8741,174.17,174.09,11.04226339]
[1730022774265,2.8741,174.17,174.12,2.8748]
[1730022777073,5.1,174.16,174.08,3.6512]
[1730022777577,5.1,174.16,174.09,11.04226339]
[1730022778371,5.1,174.16,174.12,7.06999398]
[1730022779280,7.9742,174.16,174.12,7.06999398]
[1730022779476,2.87624107,174.29,174.15,7.06999398]
[1730022779684,56.8762,174.33,174.2,7.06999398]
[1730022779685,7.06999398,174.26,174.2,7.06999398]
[1730022779873,5.1,174.25,174.2,7.06999398]
[1730022780273,5.1,174.25,174.18,11.0357164]
[1730022780875,7.9727,174.25,174.19,2.8735]
[1730022782271,2.8729,174.24,174.19,2.8735]
[1730022783784,5.1,174.25,174.18,11.0357164]
[1730022784084,7.9727,174.25,174.2,2.8735]
[1730022784676,5.1,174.25,174.2,2.8735]
[1730022784876,2.8729,174.24,174.2,2.8735]
[1730022790392,5.04,174.23,174.2,2.8735]
[1730022791087,7.9131,174.23,174.18,13.9094164]
[1730022791280,7.9131,174.23,174.18,11.0357164]
[1730022791883,7.9131,174.23,174.19,2.8737]
[1730022795594,5.04,174.23,174.18,11.0357164]
[1730022795889,5.04,174.23,174.17,1.2091]
[1730022796091,5.04,174.23,174.16,12.2567164]
[1730022796285,2.8734,174.21,174.16,15.1307164]
[1730022796490,5.04,174.23,174.16,13.9097164]
[1730022796888,2.8738,174.19,174.16,11.0357164]
[1730022799289,5.04,174.18,174.16,11.0357164]
[1730022799592,2.8747,174.13,174.1,11.0357164]
[1730022799785,5.04,174.18,174.1,11.0357164]
[1730022802293,2.8745,174.15,174.11,9.94577939]
[1730022804388,2.8746,174.14,174.11,7.07087939]
[1730022804693,5.04,174.13,174.1,9.94597939]
[1730022805582,7.9147,174.13,174.1,7.07087939]
[1730022809589,5.04,174.13,174.1,7.07087939]
[1730022809793,5.04,174.13,174.1,9.94597939]
[1730022811899,5.04,174.13,174.1,2.8751]
[1730022812092,5.04,174.13,174.1,9.94597939]
[1730022812993,7.9148,174.13,174.1,7.07087939]
[1730022815895,7.9148,174.13,174.1,9.94607939]
[1730022823700,7.9148,174.13,174.1,2.8752]
[1730022824202,7.9148,174.13,174.09,7.07087939]
[1730022824203,2.8754,174.09,174.06,2.8757]
[1730022824397,7.6554,174.09,174.06,9.94657939]
[1730022824602,7.6554,174.09,174.05,7.07087939]
[1730022825104,4.78,174.09,174.06,2.8758]
[1730022825303,4.78,174.09,174.06,9.94667939]
[1730022831903,4.78,174.09,174.07,2.8757]
[1730022832604,4.78,174.09,174.06,9.94657939]
[1730022833212,2.8746,174.14,174.1,2.8751]
[1730022833412,4.78,174.13,174.1,7.07087939]
[1730022834311,4.78,174.13,174.11,2.875]
[1730022843018,55.86,174.21,174.11,7.07087939]
[1730022843220,7.07087939,174.2,174.15,7.07087939]
[1730022843427,4.78,174.19,174.15,7.07087939]
[1730022843626,4.78,174.19,174.06,4.78]
[1730022843627,4.78,174.18,174.17,7.07087939]
[1730022844513,4.78,174.18,174.16,7.07087939]
[1730022845224,2.8742,174.17,174.13,2.8746]
[1730022845419,2.8742,174.17,174.13,9.94547939]
[1730022846219,4.78,174.18,174.13,7.07087939]
[1730022846427,2.8742,174.16,174.12,7.07087939]
[1730022846926,2.8745,174.15,174.12,7.07087939]
[1730022847131,4.62,174.14,174.12,7.07087939]
[1730022853323,4.62,174.14,174.11,2.8749]
[1730022853523,4.62,174.14,174.11,9.94577939]
[1730022854726,4.62,174.14,174.05,1.1949]
[1730022854727,7.07087939,174.13,174.05,1.1949]
[1730022855033,2.8749,174.12,174.08,2.8755]
[1730022855729,9.94567939,174.13,174.09,2.8752]
[1730022863934,2.8747,174.13,174.09,2.8752]
[1730022864143,9.94557939,174.13,174.09,2.8752]
[1730022870145,2.8743,174.15,174.12,7.07087939]
[1730022870345,4.62,174.14,174.12,7.07087939]
[1730022873544,2.8736,174.2,174.13,9.94557939]
[1730022873744,2.8736,174.2,174.05,1.1949]
[1730022873745,7.07087939,174.2,174.15,7.07087939]
[1730022873940,4.62,174.19,174.15,7.07087939]
[1730022874749,4.62,174.19,174.05,1.1949]
[1730022874750,4.62,174.18,174.16,7.07087939]
[1730022875743,4.62,174.18,174.17,2.874]
[1730022876846,4.62,174.18,174.16,9.94507939]
[1730022888451,4.46,174.18,174.16,9.94507939]
[1730022893851,4.46,174.18,174.16,2.8742]
[1730022894154,4.46,174.18,174.16,9.94507939]
[1730022895457,4.46,174.2,174.18,2.8737]
[1730022895753,4.46,174.2,174.19,7.07087939]
[1730022897451,55.86,174.21,174.19,9.94457939]
[1730022897655,4.46,174.2,174.19,9.94457939]
[1730022905364,4.32,174.2,174.19,9.94457939]
[1730022906357,4.32,174.2,174.19,7.07087939]
[1730022909968,4.32,174.2,174.08,66.81574961]
[1730022910168,11.39087939,174.2,174.14,7.07087939]
[1730022911081,2.8738,174.19,174.15,2.8743]
[1730022911674,2.8739,174.18,174.15,2.8743]
[1730022911873,2.8739,174.18,174.16,7.07087939]
[1730022912683,4.32,174.2,174.17,7.07087939]
[1730022912873,4.32,174.2,174.19,7.07087939]
[1730022917087,4.32,174.2,174.18,2.8738]
[1730022917281,4.32,174.2,174.18,9.94467939]
[1730022920379,4.32,174.2,174.19,2.8737]
[1730022921285,2.873,174.23,174.19,2.8737]
[1730022921486,4.32,174.22,174.2,7.07087939]
[1730022921687,2.873,174.23,174.2,9.94437939]
[1730022921887,4.32,174.21,174.2,9.94437939]
[1730022939704,58.0961,174.3,174.2,7.07087939]
[1730022939904,11.33087939,174.29,174.24,7.07087939]
[1730022940109,7.07087939,174.29,174.24,7.07087939]
[1730022940309,4.26,174.28,174.24,7.07087939]
[1730022940698,2.8726,174.26,174.24,7.07087939]
[1730022942605,55.84,174.3,174.24,7.07087939]
[1730022942910,4.26,174.29,174.24,7.07087939]
[1730022943301,7.1321,174.29,174.25,2.8726]
[1730022943507,7.1321,174.29,174.28,7.07087939]
[1730022943508,4.26,174.29,174.28,7.07087939]
[1730022943703,11.33087939,174.29,174.12,12.45025876]
[1730022943910,2.8726,174.26,174.22,9.94407939]
[1730022944112,4.26,174.25,174.22,9.94407939]
[1730022946618,4.26,174.25,174.22,7.07087939]
[1730022947609,4.26,174.25,174.22,9.94407939]
[1730022951111,4.26,174.25,174.14,4.26]
[1730022951112,2.8729,174.24,174.2,9.94427939]
[1730022960617,2.8729,174.24,174.21,2.8733]
[1730022961416,4.26,174.25,174.21,2.8733]